fUSD/lending_fUSD_20260322
["ID","MTS","AMOUNT","RATE_DAILY","PERIOD"]
[408757156,1774199431534,-500.0,0.00012243,2]
[408757157,1774199431543,-300.0,0.00012294,2]
[408757158,1774199431552,-5286.6487438,0.00012295,2]
[408757159,1774199431578,-1179.57782901,0.00012295,2]
[408757160,1774199431590,-643.21682337,0.00012295,2]
[408757175,1774199431936,-410.6584033,0.00012295,2]
[408757179,1774199437447,-7664.61820052,0.00012295,2]
[408757180,1774199437456,-6510.28179948,0.00012348,2]
[408757183,1774199439639,-44383.85820052,0.00012348,2]
[408757184,1774199439648,-382.44369691,0.00012373,2]
[408757185,1774199439658,-3969.72,0.00012503,2]
[408757186,1774199439667,-2684.23,0.00012503,2]
[408757187,1774199439677,-195.0,0.00012552,2]
[408757188,1774199439687,-250.0,0.00012552,2]
[408757189,1774199439696,-2752.47884392,0.00012552,2]
[408757190,1774199439706,-300.0,0.00012553,2]
[408757191,1774199439716,-759.0,0.00012683,2]
[408757192,1774199439726,-15410.66,0.00012727,2]
[408757193,1774199439735,-1604.0,0.00012766,2]
[408757194,1774199439745,-177.0,0.00012773,2]
[408757195,1774199439755,-504.0,0.00012792,2]
[408757196,1774199439764,-397.58746921,0.00012799,2]
[408757197,1774199439774,-767.0,0.00012835,2]
[408757198,1774199439783,-1398.0,0.0001286,2]
[408757199,1774199439793,-150.99,0.00012862,2]
[408757200,1774199439802,-150.99,0.00012862,2]
[408757201,1774199439811,-299.99,0.00012862,2]
[408757202,1774199439820,-9999.99,0.00012862,2]
[408757203,1774199439830,-9999.99,0.00012862,2]
[408757204,1774199439839,-160.0,0.00012896,2]
[408757205,1774199439848,-979.16666667,0.00012896,2]
[408757206,1774199439858,-160.0,0.00012896,2]
[408757207,1774199439867,-500.0,0.00012964,3]
[408757208,1774199439877,-150.0,0.00013035,2]
[408757209,1774199439887,-150.0,0.00013077,2]
[408757210,1774199439896,-2500.0,0.0001339,2]
[408757211,1774199439906,-167.35665433,0.000134,2]
[408757212,1774199439915,-205.60017916,0.000134,2]
[408757213,1774199439924,-195.88340101,0.000134,2]
[408757214,1774199439938,-1976.11851217,0.000134,2]
[408757215,1774199439948,-150.0,0.00013424,2]
[408757216,1774199439958,-3240.0,0.00013425,2]
[408757217,1774199439967,-335.087,0.00013473,2]
[408757218,1774199439977,-5880.476,0.00013473,2]
[408757219,1774199439987,-151.0,0.00013482,2]
[408757220,1774199439996,-151.0,0.00013482,2]
[408757221,1774199440007,-151.0,0.00013482,2]
[408757222,1774199440017,-151.0,0.00013482,2]
[408757223,1774199440027,-151.0,0.00013482,2]
[408757224,1774199440036,-151.0,0.00013482,2]
[408757225,1774199440046,-151.0,0.00013482,2]
[408757226,1774199440056,-151.0,0.00013482,2]
[408757227,1774199440066,-151.0,0.00013482,2]
[408757228,1774199440076,-151.0,0.00013482,2]
[408757229,1774199440085,-151.0,0.00013482,2]
[408757230,1774199440095,-151.0,0.00013482,2]
[408757231,1774199440105,-151.0,0.00013482,2]
[408757232,1774199440114,-151.0,0.00013482,2]
[408757233,1774199440124,-13235.7913,0.00013497,2]
[408757234,1774199440133,-182.79428225,0.000135,2]
[408757235,1774199440145,-273.42902866,0.000135,2]
[408757236,1774199440165,-23830.80796832,0.000135,2]
[408757237,1774199440178,-1695.41392368,0.000135,2]
[408757238,1774199440188,-1959.96489572,0.000135,2]
[408757239,1774199440198,-2955.44542748,0.000135,2]
[408757240,1774199440209,-519.16097792,0.000135,2]
[408757241,1774199440229,-2895.61,0.00013562,2]
[408757242,1774199440249,-248.0767881,0.00013588,2]
[408757243,1774199440261,-176.64149168,0.00013597,2]
[408757244,1774199440272,-500.0,0.00013597,2]
[408757245,1774199440282,-334.63927626,0.00013597,2]
[408757246,1774199440293,-500.0,0.00013597,2]
[408757247,1774199440302,-500.0,0.00013597,2]
[408757248,1774199440312,-500.0,0.00013597,2]
[408757249,1774199440322,-500.0,0.00013597,2]
[408757250,1774199440331,-500.0,0.00013597,2]
[408757251,1774199440345,-500.0,0.00013597,2]
[408757252,1774199440355,-182.64446616,0.00013597,2]
[408757253,1774199440364,-500.0,0.00013597,2]
[408757254,1774199440375,-500.0,0.00013597,2]
[408757255,1774199440384,-500.0,0.00013597,2]
[408757256,1774199440395,-500.0,0.00013597,2]
[408757257,1774199440404,-550.0,0.00013597,2]
[408757258,1774199440413,-500.0,0.00013597,2]
[408757259,1774199440423,-500.0,0.00013597,2]
[408757260,1774199440433,-403.03784823,0.00013597,2]
[408757261,1774199440443,-412.3560062,0.00013597,2]
[408757262,1774199440453,-500.0,0.00013597,2]
[408757263,1774199440463,-398.6694,0.00013597,2]
[408757264,1774199440485,-500.0,0.00013597,2]
[408757265,1774199440505,-500.0,0.00013597,2]
[408757266,1774199440516,-500.0,0.00013597,2]
[408757267,1774199440529,-500.0,0.00013597,2]
[408757268,1774199440550,-500.0,0.00013597,2]
[408757269,1774199440572,-500.0,0.00013597,2]
[408757270,1774199440591,-500.0,0.00013597,2]
[408757271,1774199440604,-567.29643154,0.00013597,2]
[408757272,1774199440615,-500.0,0.00013597,2]
[408757273,1774199440627,-500.0,0.00013597,2]
[408757274,1774199440639,-500.0,0.00013597,2]
[408757275,1774199440650,-500.0,0.00013597,2]
[408757276,1774199440671,-500.0,0.00013597,2]
[408757277,1774199440685,-500.0,0.00013597,2]
[408757278,1774199440697,-500.0,0.00013597,2]
[408757279,1774199440709,-500.0,0.00013597,2]
[408757280,1774199440722,-500.0,0.00013597,2]
[408757281,1774199440732,-500.0,0.00013597,2]
[408757282,1774199440743,-500.0,0.00013597,2]
[408757283,1774199440754,-500.0,0.00013597,2]
[408757284,1774199440764,-500.0,0.00013597,2]
[408757285,1774199440775,-500.0,0.00013597,2]
[408757286,1774199440786,-500.0,0.00013597,2]
[408757287,1774199440801,-500.0,0.00013597,2]
[408757288,1774199440811,-500.0,0.00013597,2]
[408757289,1774199440821,-89483.53554845,0.00013598,2]
[408757290,1774199440836,-399.543956,0.00013598,2]
[408757291,1774199440855,-1413.47813135,0.00013598,2]
[408757292,1774199440868,-383.45408857,0.00013598,2]
[408757293,1774199440881,-313687.75323804,0.00013598,2]
[408757294,1774199440932,-1123.17140175,0.00013598,2]
[408757301,1774199442573,-2011.21213298,0.00013598,2]
[408757305,1774199442625,-1423.6,0.00013598,2]
[408757306,1774199442638,-524.0,0.00013598,2]
[408757307,1774199442681,-496.70449516,0.00013598,2]
[408757308,1774199442893,-1013.90818095,0.00013598,2]
[408757311,1774199445462,-1500.0,0.00013598,2]
[408757312,1774199445518,-10349.27104002,0.00013598,2]
[408757324,1774200363699,-1034.02987452,0.000108,2]
[408757325,1774200363726,-3313.69,0.00011507,2]
[408757326,1774200363752,-250.0,0.00011589,2]
[408757327,1774200363777,-195.0,0.00011671,2]
[408757328,1774200363801,-301.64,0.00011671,2]
[408757329,1774200363826,-301.64,0.00011671,2]
[408757330,1774200363851,-1500.0,0.00011696,2]
[408757331,1774200363876,-2611.56,0.00011739,2]
[408757332,1774200363902,-238.96,0.00011835,2]
[408757333,1774200363926,-195.0,0.00011929,2]
[408757334,1774200363953,-195.0,0.00011929,2]
[408757335,1774200363981,-195.0,0.00011929,2]
[408757336,1774200364007,-150.0,0.00011972,2]
[408757337,1774200364033,-500.0,0.00011973,2]
[408757338,1774200364059,-500.0,0.00011973,2]
[408757339,1774200364083,-500.0,0.00011973,2]
[408757340,1774200364108,-500.0,0.00011973,2]
[408757341,1774200364133,-500.0,0.00011973,2]
[408757342,1774200364157,-500.0,0.00011973,2]
[408757343,1774200364181,-500.0,0.00011973,2]
[408757344,1774200364207,-500.0,0.00011973,2]
[408757345,1774200364231,-500.0,0.00011973,2]
[408757346,1774200364257,-500.0,0.00011973,2]
[408757347,1774200364283,-500.0,0.00011973,2]
[408757348,1774200364309,-500.0,0.00011973,2]
[408757349,1774200364335,-500.0,0.00011973,2]
[408757350,1774200364359,-500.0,0.00011973,2]
[408757351,1774200364385,-521.96107449,0.00011973,2]
[408757352,1774200364409,-166.66,0.00012008,2]
[408757353,1774200364433,-150.99,0.00012008,2]
[408757354,1774200364457,-150.99,0.00012008,2]
[408757355,1774200364481,-9999.99,0.00012008,2]
[408757356,1774200364505,-299.99,0.00012008,2]
[408757357,1774200364529,-150.0,0.000121,2]
[408757358,1774200364554,-2381.8674,0.00012148,2]
[408757359,1774200364579,-2500.0,0.00012148,2]
[408757360,1774200364602,-268.069,0.00012148,2]
[408757361,1774200364627,-4704.38,0.00012148,2]
[408757362,1774200364650,-42562.367786,0.00012148,2]
[408757363,1774200364675,-4272.51865377,0.00012148,2]
[408757364,1774200364699,-165.3845254,0.00012238,2]
[408757365,1774200364723,-500.0,0.0001224,2]
[408757366,1774200364748,-500.0,0.0001224,2]
[408757367,1774200364772,-500.0,0.0001224,2]
[408757368,1774200364797,-500.0,0.0001224,2]
[408757369,1774200364822,-500.0,0.0001224,2]
[408757370,1774200364847,-500.0,0.0001224,2]
[408757371,1774200364872,-500.0,0.0001224,2]
[408757372,1774200364896,-151.0,0.0001224,2]
[408757373,1774200364921,-500.0,0.0001224,2]
[408757374,1774200364946,-500.0,0.0001224,2]
[408757375,1774200364971,-500.0,0.0001224,2]
[408757376,1774200364996,-500.0,0.0001224,2]
[408757377,1774200365021,-200.0,0.0001224,2]
[408757378,1774200365045,-500.0,0.0001224,2]
[408757379,1774200365072,-500.0,0.0001224,2]
[408757380,1774200365401,-500.0,0.0001224,2]
[408757381,1774200365488,-500.0,0.0001224,2]
[408757382,1774200365515,-500.0,0.0001224,2]
[408757383,1774200365544,-500.0,0.0001224,2]
[408757384,1774200365569,-500.0,0.0001224,2]
[408757385,1774200365595,-500.0,0.0001224,2]
[408757386,1774200365619,-586.89232069,0.0001224,2]
[408757387,1774200365643,-151.0,0.0001224,2]
[408757388,1774200365669,-151.0,0.0001224,2]
[408757389,1774200365694,-151.0,0.0001224,2]
[408757390,1774200365719,-151.0,0.0001224,2]
[408757391,1774200365743,-151.0,0.0001224,2]
[408757392,1774200365768,-151.0,0.0001224,2]
[408757393,1774200365794,-151.0,0.0001224,2]
[408757394,1774200365819,-151.0,0.0001224,2]
[408757395,1774200365844,-151.0,0.0001224,2]
[408757396,1774200365869,-151.0,0.0001224,2]
[408757397,1774200365894,-151.0,0.0001224,2]
[408757398,1774200365919,-151.0,0.0001224,2]
[408757399,1774200365946,-285.25515906,0.00012247,2]
[408757400,1774200365974,-500.0,0.00012247,2]
[408757401,1774200366002,-500.0,0.00012247,2]
[408757402,1774200366031,-500.0,0.00012247,2]
[408757403,1774200366060,-449.26145668,0.00012247,2]
[408757404,1774200366088,-500.0,0.00012247,2]
[408757405,1774200366116,-500.0,0.00012247,2]
[408757406,1774200366145,-500.0,0.00012247,2]
[408757407,1774200366173,-500.0,0.00012247,2]
[408757408,1774200366201,-500.0,0.00012247,2]
[408757409,1774200366229,-500.0,0.00012247,2]
[408757410,1774200366256,-500.0,0.00012247,2]
[408757411,1774200366280,-500.0,0.00012247,2]
[408757412,1774200366305,-412.85112631,0.00012247,2]
[408757413,1774200366329,-500.0,0.00012247,2]
[408757414,1774200366353,-500.0,0.00012247,2]
[408757415,1774200366378,-500.0,0.00012247,2]
[408757416,1774200366402,-282.12649376,0.00012247,2]
[408757417,1774200366426,-500.0,0.00012247,2]
[408757418,1774200366449,-500.0,0.00012247,2]
[408757419,1774200366473,-500.0,0.00012247,2]
[408757420,1774200366497,-500.0,0.00012247,2]
[408757421,1774200366521,-334.24749338,0.00012247,2]
[408757422,1774200367128,500.0,0.00011903,2]
[408757423,1774200381543,-242.99,0.0001224,2]
[408757424,1774200381573,-751113.0522,0.00012248,2]
[408757425,1774200381601,-248643.9578,0.00012248,2]
[408757427,1774200432941,2481.0,6.2e-05,2]
[408757428,1774200433135,2481.0,6.526e-05,2]
[408757429,1774200433344,2481.0,6.853e-05,2]
[408757430,1774200433537,2481.0,7.179e-05,2]
[408757431,1774200433755,76.01,7.505e-05,2]
[408757432,1774200433781,2404.99,7.505e-05,2]
[408757433,1774200433946,2481.0,7.832e-05,2]
[408757434,1774200434144,2481.0,8.158e-05,2]
[408757435,1774200434355,2481.0,8.484e-05,2]
[408757436,1774200434555,152.02,8.811e-05,2]
[408757437,1774200434583,2328.98,8.811e-05,2]
[408757438,1774200434958,2481.0,9.137e-05,2]
[408757439,1774200435156,2481.0,9.463e-05,2]
[408757440,1774200536784,10000.01,9.5e-05,3]
[408757441,1774200536806,10000.01,9.5e-05,3]
[408757442,1774200536830,10000.01,9.5e-05,3]
[408757443,1774200536852,10000.01,9.5e-05,3]
[408757444,1774200536874,10000.01,9.5e-05,3]
[408757445,1774200536896,10000.01,9.5e-05,3]
[408757446,1774200536918,10000.01,9.5e-05,3]
[408757447,1774200536939,10000.01,9.5e-05,3]
[408757448,1774200536966,11709.21556643,9.5e-05,3]
[408757458,1774200635825,-1435.95302,9.79e-05,2]
[408757493,1774200638109,-1045.04698,9.79e-05,2]
[408757495,1774200638118,-450.0,9.79e-05,2]
[408757497,1774200638127,-1519.89176521,0.00010016,2]
[408757499,1774200638136,-1610.86604831,0.00010116,2]
[408757501,1774200638147,-870.13395169,0.00010116,2]
[408757503,1774200638156,-1200.0,0.00010441,2]
[408757505,1774200638166,-2481.0,0.00010442,2]
[408757507,1774200638175,-450.0,0.00010442,7]
[408757509,1774200638184,-269.90012785,0.000107,2]
[408757511,1774200638194,-150.0,0.000107,2]
[408757513,1774200638203,-300.0,0.00010768,2]
[408757515,1774200638213,-250.0,0.00010769,2]
[408757518,1774200638223,-2484.12666407,0.00010769,2]
[408757732,1774200640452,-2515.87333593,0.00010769,2]
[408757734,1774200640462,-2481.0,0.00010769,2]
[408757736,1774200640471,-2481.0,0.00011095,2]
[408757738,1774200640480,-1852.42,0.00011338,2]
[408757740,1774200640489,-2481.0,0.00011421,2]
[408757742,1774200640499,-1680.0,0.00011485,2]
[408757744,1774200640509,-301.63,0.00011671,2]
[408757746,1774200640518,-1600.0,0.0001168,2]
[408757748,1774200640527,-2481.0,0.00011748,2]
[408757750,1774200640537,-420.0,0.00011835,2]
[408757752,1774200640546,-457.44547683,0.00011948,2]
[408757754,1774200640555,-250.0,0.00011959,2]
[408757756,1774200640565,-56456.67772452,0.00011973,2]
[408757758,1774200640574,-343.58347608,0.00012038,2]
[408757760,1774200640583,-151.0,0.00012045,2]
[408757762,1774200640597,-214.153158,0.00012045,2]
[408757764,1774200640607,-151.0,0.00012045,2]
[408757766,1774200640616,-500.0,0.00012047,2]
[408757768,1774200640626,-188.99578842,0.00012047,2]
[408757770,1774200640636,-500.0,0.00012047,2]
[408757772,1774200640646,-500.0,0.00012047,2]
[408757774,1774200640659,-680.42997374,0.00012047,2]
[408757777,1774200640669,-680.42997374,0.00012047,2]
[408757779,1774200640679,-680.42997374,0.00012047,2]
[408757781,1774200640688,-680.42997374,0.00012047,2]
[408757783,1774200640699,-680.42997374,0.00012047,2]
[408757785,1774200640708,-680.42997374,0.00012047,2]
[408757787,1774200640718,-680.42997374,0.00012047,2]
[408757789,1774200640728,-680.42997374,0.00012047,2]
[408757791,1774200640738,-680.42997374,0.00012047,2]
[408757793,1774200640747,-680.42997374,0.00012047,2]
[408757795,1774200640757,-680.42997374,0.00012047,2]
[408757797,1774200640766,-680.42997374,0.00012047,2]
[408757799,1774200640776,-680.42997374,0.00012047,2]
[408757801,1774200640785,-680.42997374,0.00012047,2]
[408757803,1774200640795,-680.42997374,0.00012047,2]
[408757805,1774200640804,-680.42997374,0.00012047,2]
[408757807,1774200640814,-680.42997374,0.00012047,2]
[408757809,1774200640824,-680.42997374,0.00012047,2]
[408757811,1774200640833,-680.42997374,0.00012047,2]
[408757813,1774200640842,-680.42997374,0.00012047,2]
[408757815,1774200640852,-680.42997374,0.00012047,2]
[408757817,1774200640861,-680.42997374,0.00012047,2]
[408757819,1774200640870,-680.42997374,0.00012047,2]
[408757821,1774200640879,-680.42997374,0.00012047,2]
[408757823,1774200640889,-680.42997374,0.00012047,2]
[408757825,1774200640898,-680.42997374,0.00012047,2]
[408757827,1774200640910,-680.42997374,0.00012047,2]
[408757830,1774200640919,-680.42997374,0.00012047,2]
[408757832,1774200640929,-680.42997374,0.00012047,2]
[408757834,1774200640938,-680.42997374,0.00012047,2]
[408757836,1774200640947,-680.42997374,0.00012047,2]
[408757838,1774200640957,-680.42997374,0.00012047,2]
[408757840,1774200640966,-680.42997374,0.00012047,2]
[408757842,1774200640975,-680.42997374,0.00012047,2]
[408757844,1774200640988,-680.42997374,0.00012047,2]
[408757846,1774200640997,-680.42997374,0.00012047,2]
[408757848,1774200641007,-680.42997374,0.00012047,2]
[408757850,1774200641017,-680.42997374,0.00012047,2]
[408757852,1774200641027,-680.42997374,0.00012047,2]
[408757854,1774200641041,-680.42997374,0.00012047,2]
[408757856,1774200641051,-680.42997374,0.00012047,2]
[408757859,1774200641060,-680.42997374,0.00012047,2]
[408757861,1774200641070,-680.42997374,0.00012047,2]
[408757863,1774200641080,-680.42997374,0.00012047,2]
[408757865,1774200641089,-680.42997374,0.00012047,2]
[408757867,1774200641099,-680.42997374,0.00012047,2]
[408757869,1774200641108,-680.42997374,0.00012047,2]
[408757871,1774200641117,-680.42997374,0.00012047,2]
[408757873,1774200641126,-680.42997374,0.00012047,2]
[408757875,1774200641136,-680.42997374,0.00012047,2]
[408757877,1774200641145,-680.42997374,0.00012047,2]
[408757879,1774200641154,-680.42997374,0.00012047,2]
[408757881,1774200641165,-680.42997374,0.00012047,2]
[408757883,1774200641175,-680.42997374,0.00012047,2]
[408757885,1774200641184,-680.42997374,0.00012047,2]
[408757887,1774200641194,-680.42997374,0.00012047,2]
[408757889,1774200641203,-680.42997374,0.00012047,2]
[408757891,1774200641212,-680.42997374,0.00012047,2]
[408757893,1774200641221,-680.42997374,0.00012047,2]
[408757895,1774200641231,-680.42997374,0.00012047,2]
[408757897,1774200641240,-197.48854563,0.00012047,2]
[408757899,1774200641250,-677.99986669,0.00012047,2]
[408757901,1774200641259,-677.99986669,0.00012047,2]
[408757903,1774200641268,-677.99986669,0.00012047,2]
[408757905,1774200641278,-677.99986669,0.00012047,2]
[408757907,1774200641287,-677.99986669,0.00012047,2]
[408757910,1774200641297,-677.99986669,0.00012047,2]
[408757912,1774200641306,-677.99986669,0.00012047,2]
[408757914,1774200641315,-677.99986669,0.00012047,2]
[408757916,1774200641325,-677.99986669,0.00012047,2]
[408757918,1774200641335,-677.99986669,0.00012047,2]
[408757920,1774200641344,-677.99986669,0.00012047,2]
[408757922,1774200641352,-677.99986669,0.00012047,2]
[408757924,1774200641361,-677.99986669,0.00012047,2]
[408757926,1774200641375,-677.99986669,0.00012047,2]
[408757928,1774200641384,-677.99986669,0.00012047,2]
[408757930,1774200641394,-677.99986669,0.00012047,2]
[408757932,1774200641403,-677.99986669,0.00012047,2]
[408757934,1774200641412,-677.99986669,0.00012047,2]
[408757936,1774200641421,-677.99986669,0.00012047,2]
[408757938,1774200641430,-677.99986669,0.00012047,2]
[408757940,1774200641439,-677.99986669,0.00012047,2]
[408757942,1774200641457,-677.99986669,0.00012047,2]
[408757944,1774200641477,-677.99986669,0.00012047,2]
[408757946,1774200641486,-677.99986669,0.00012047,2]
[408757948,1774200641495,-677.99986669,0.00012047,2]
[408757950,1774200641504,-677.99986669,0.00012047,2]
[408757952,1774200641513,-677.99986669,0.00012047,2]
[408757954,1774200641523,-500.0,0.00012047,2]
[408757956,1774200641533,-500.0,0.00012047,2]
[408757958,1774200641542,-633.97324536,0.00012047,2]
[408757960,1774200641551,-150.0,0.00012047,2]
[408757962,1774200641561,-2076190.3678,0.00012048,2]
[408757964,1774200641571,-503.08076831,0.00012073,2]
[408757966,1774200641580,-500.0,0.00012073,2]
[408757968,1774200641589,-501.30450666,0.00012073,2]
[408757970,1774200641598,-500.0,0.00012073,2]
[408757972,1774200641608,-2481.0,0.00012074,2]
[408757974,1774200641617,-155.6502,0.000121,2]
[408757976,1774200641626,-5100.0,0.00012147,2]
[408757979,1774200641635,-2500.0,0.00012148,2]
[408757981,1774200641644,-4925.74237914,0.00012148,2]
[408757982,1774200641655,-346.1073186,0.00012148,2]
[408757985,1774200641665,-250.0,0.00012208,2]
[408757987,1774200641675,-200.0,0.0001224,2]
[408757989,1774200641684,-500.0,0.0001224,2]
[408757991,1774200641694,-500.0,0.0001224,2]
[408757993,1774200641703,-500.0,0.0001224,2]
[408757995,1774200641712,-500.0,0.0001224,2]
[408757997,1774200641721,-500.0,0.0001224,2]
[408757999,1774200641730,-500.0,0.0001224,2]
[408758001,1774200641739,-500.0,0.0001224,2]
[408758003,1774200641748,-500.0,0.0001224,2]
[408758005,1774200641757,-500.0,0.0001224,2]
[408758007,1774200641766,-500.0,0.0001224,2]
[408758009,1774200641778,-500.0,0.0001224,2]
[408758011,1774200641787,-500.0,0.0001224,2]
[408758013,1774200641797,-500.0,0.0001224,2]
[408758015,1774200641806,-151.0,0.0001224,2]
[408758017,1774200641815,-151.0,0.0001224,2]
[408758019,1774200641824,-151.0,0.0001224,2]
[408758021,1774200641836,-151.0,0.0001224,2]
[408758023,1774200641846,-154.38917773,0.0001224,2]
[408758025,1774200641855,-151.0,0.0001224,2]
[408758027,1774200641864,-151.0,0.0001224,2]
[408758029,1774200641874,-500.0,0.0001224,2]
[408758031,1774200641883,-151.0,0.0001224,2]
[408758033,1774200641892,-500.0,0.0001224,2]
[408758035,1774200641902,-151.0,0.0001224,2]
[408758037,1774200641911,-500.0,0.0001224,2]
[408758039,1774200641920,-151.0,0.0001224,2]
[408758041,1774200641930,-151.0,0.0001224,2]
[408758043,1774200641938,-151.0,0.0001224,2]
[408758045,1774200641947,-151.0,0.0001224,2]
[408758047,1774200641957,-500.0,0.0001224,2]
[408758049,1774200641966,-500.0,0.0001224,2]
[408758051,1774200641976,-500.0,0.0001224,2]
[408758052,1774200641985,-500.0,0.0001224,2]
[408758053,1774200641994,-500.0,0.0001224,2]
[408758054,1774200642003,-500.0,0.0001224,2]
[408758055,1774200642012,-500.0,0.0001224,2]
[408758056,1774200642021,-500.0,0.0001224,2]
[408758057,1774200642030,-500.0,0.0001224,2]
[408758058,1774200642040,-1251356.0422,0.00012248,2]
[408758059,1774200642049,-12136.6227512,0.00012248,2]
[408758060,1774200642058,-195.0,0.00012254,2]
[408758061,1774200642068,-166.66,0.00012261,2]
[408758062,1774200642077,-500.0,0.00012273,2]
[408758063,1774200642087,-500.0,0.00012273,2]
[408758064,1774200642096,-2000.0,0.00012303,2]
[408758065,1774200642106,-150.0,0.00012344,2]
[408758066,1774200642115,-263.263224,0.00012345,2]
[408758067,1774200642124,-195.0,0.00012363,2]
[408758068,1774200642134,-274.8699727,0.00012363,2]
[408758069,1774200642143,-2481.0,0.000124,2]
[408758070,1774200642153,-238.96,0.00012492,2]
[408758071,1774200642162,-166.66,0.00012513,2]
[408758072,1774200642171,-242.99,0.00012514,2]
[408758073,1774200642181,-500.0,0.00012621,2]
[408758074,1774200642190,-503.38189689,0.00012621,2]
[408758075,1774200642199,-2351.0,0.00012634,2]
[408758076,1774200642209,-56456.67772447,0.00012732,2]
[408758077,1774200642218,-166.66,0.00012766,2]
[408758078,1774200642227,-242.99,0.00012788,2]
[408758079,1774200642237,-200.0,0.00012788,2]
[408758080,1774200642264,-1000.0,0.00012821,2]
[408758081,1774200642281,-500.0,0.00012821,2]
[408758082,1774200642301,-250.0,0.00012838,2]
[408758083,1774200642322,-979.16666667,0.00012884,2]
[408758084,1774200642337,-160.0,0.00012884,2]
[408758085,1774200642357,-160.0,0.00012884,2]
[408758086,1774200642378,-250.0,0.00013,2]
[408758087,1774200642398,-5642.82862896,0.00013,2]
[408758093,1774200642420,-587.0,0.00013009,2]
[408758097,1774200642439,-166.66,0.00013019,2]
[408758103,1774200642461,-3171.13653461,0.0001305,2]
[408758105,1774200642479,-242.99,0.00013062,2]
[408758110,1774200642513,-255.0,0.00013131,2]
[408758113,1774200642534,-1600.0,0.0001314,2]
[408758117,1774200642559,-238.96,0.0001315,2]
[408758124,1774200642579,-150.0,0.00013237,2]
[408758129,1774200642598,-166.66,0.00013272,2]
[408758132,1774200642619,-174.19,0.00013312,2]
[408758140,1774200642680,-243.02,0.00013336,2]
[408758143,1774200642704,-200.0,0.00013336,2]
[408758146,1774200642725,-277.04038587,0.00013368,2]
[408758149,1774200642747,-500.0,0.00013424,2]
[408758152,1774200642765,-500.0,0.00013424,2]
[408758155,1774200642785,-500.0,0.00013424,2]
[408758158,1774200642807,-500.0,0.00013424,2]
[408758161,1774200642825,-500.0,0.00013424,2]
[408758165,1774200642846,-500.0,0.00013424,2]
[408758168,1774200642865,-556.71503579,0.00013424,2]
[408758171,1774200642885,-54871.41163156,0.0001347,2]
[408758173,1774200642902,-195.0,0.00013472,2]
[408758176,1774200642921,-195.0,0.00013472,2]
[408758179,1774200642938,-32984.9071,0.00013498,2]
[408758182,1774200642956,-1000.0,0.00013498,2]
[408758185,1774200642975,-1000.0,0.000135,2]
[408758188,1774200642992,-161.5132,0.000135,2]
[408758191,1774200643009,-154.190273,0.00013595,2]
[408758193,1774200643027,-154.190273,0.00013595,2]
[408758196,1774200643045,-1435.95302,0.00013598,2]
[408758199,1774200643063,-238.69476045,0.00013618,2]
[408758202,1774200643079,-343.58347608,0.00013689,2]
[408758205,1774200643096,-500.0,0.00013698,2]
[408758209,1774200643111,-500.0,0.00013698,2]
[408758211,1774200643128,-500.0,0.00013698,2]
[408758214,1774200643143,-500.0,0.00013698,2]
[408758217,1774200643158,-500.0,0.00013698,2]
[408758219,1774200643174,-500.0,0.00013698,2]
[408758222,1774200643189,-500.0,0.00013698,2]
[408758225,1774200643203,-500.0,0.00013698,2]
[408758227,1774200643218,-500.0,0.00013698,2]